Cogmind - Beta 16.1 @@@ ROGUE MODE // 2026.01.13 @ 20:17:49 Player: BlobtheGreat Result: Destroyed by as-23487 with Assembled Heavy Rifle Performance ------------- Evolutions (0) 0 Regions Visited (2) 400 Robots Destroyed (27) 135 Value Destroyed (578) 578 Prototype IDs (2) 40 Alien Tech Used (0) 0 Bonus (0) 0 TOTAL SCORE: 1153 Bonus ------- None Cogmind --------- Core Integrity 0/250 Matter 280/300 Energy 99/100 System Corruption 0% Temperature Cool (0) Movement Core (50) Location -10/Mines Parts ------- > --- POWER (1) -------- (None) > --- PROPULSION (2) --- (None) > --- UTILITY (2) ------ (None) > --- WEAPON (2) ------- (None) > --- INVENTORY (5) ---- Light Nuclear Core Compact Wheel Trap Extractor (0/4) Grenade Launcher Botcube Peak State ------------ > --- POWER ------------ Light Ion Engine > --- PROPULSION ------- Light Treads Light Treads > --- UTILITY ---------- Small Storage Unit Seismic Detector > --- WEAPON ----------- Assault Rifle Light Assault Rifle > --- INVENTORY -------- Ion Engine Aluminum Leg Aluminum Leg Wheel Compact Wheel Medium Laser Botcube [Rating: 8] Favorites ----------- Power Light Ion Engine Engine Light Ion Engine Propulsion Light Treads Treads Light Treads Utility Large Storage Unit Device Seismic Detector Storage Large Storage Unit Weapon Light Assault Rifle Energy Gun Medium Laser Ballistic Gun Light Assault Rifle Special Weapon Mining Laser Build | -11 -10 -10 ------- Run | Yrd Mat Min Slots Evolved . | . . . Power . | . . . Propulsion . | . . . Utility . | . . . Weapon . | . . . Parts Attached 14 | 7 3 4 Power 2 | 1 1 . Engine 2 | 1 1 . Core . | . . . Reactor . | . . . Propulsion 3 | 2 . 1 Treads 3 | 2 . 1 Leg . | . . . Wheel . | . . . Hover . | . . . Flight . | . . . Utility 3 | 2 1 . Device 1 | 1 . . Storage 2 | 1 1 . Processor . | . . . Hackware . | . . . Protection . | . . . Artifact . | . . . Weapon 6 | 2 1 3 Energy Gun 1 | . . 1 Energy Cannon . | . . . Ballistic Gun 4 | 2 1 1 Ballistic Cannon . | . . . Launcher . | . . . Special Weapon 1 | . . 1 Impact Weapon . | . . . Slashing Weapon . | . . . Piercing Weapon . | . . . Special Melee Weapon . | . . . Unidentified Prototypes . | . . . Parts Lost 8 | . 3 5 Power 2 | . 1 1 Propulsion 2 | . . 2 Utility 1 | . 1 . Weapon 3 | . 1 2 Highest Loss Streak 4 | . 1 4 To Critical Strikes . | . . . Average Backups 7 | 5 7 9 Power . | . . . Propulsion 3 | 3 3 3 Utility 1 | . 1 1 Weapon 2 | . 2 3 Tool/Special . | . . . Unused Backups 8 | . 1 7 Power 1 | . . 1 Propulsion 4 | . 1 3 Utility 2 | . . 2 Weapon 1 | . . 1 Tool/Special . | . . . Average Slot Usage (%) 86 | . 87 83 Engine 11 | . 11 14 Treads 27 | . 27 28 Device 4 | . 4 . Storage 14 | . 14 14 Ballistic Gun 27 | . 28 22 Peak Build Rating 8 | 8 8 8 Average Rating 7 | 7 7 7 On Entrance 5 | . 8 8 Avg Prop Armor Cover (%) . | . . . Naked Turns 5 | . . 5 Heaviest Build 28 | 12 28 28 Greatest Support 40 | 40 40 40 Greatest Overweight (x) 1 | . . 1 Average Overweight (x) . | . . . Largest Inventory Capacity 15 | 8 15 15 Average Capacity 11 | 7 12 14 Most Carried 11 | 8 11 11 Average Carried 8 | 6 8 10 Final Capacity 15 | 8 15 5 Final Carried 11 | 8 11 5 Class Distribution -------------------- 100% | Mutant Dominant Class ---------------- Mutant | -10/Materials Mutant | -10/Mines Resources | -11 -10 -10 ----------- Run | Yrd Mat Min Matter Collected 749 | 452 274 23 Remotely . | . . . Salvage Created 991 | 264 634 93 Parts 67 | 22 39 6 Haulers Intercepted 2 | . 2 . Recyclers Shooed 2 | 1 1 . Parts Field Recycled . | . . . Retrieved Matter . | . . . Parts Self-Destructed . | . . . Prevented . | . . . Parts Restored . | . . . Kills | -11 -10 -10 ------- Run | Yrd Mat Min Combat Hostiles Destroyed 16 | . 14 2 Guns 16 | . 14 2 Classes Destroyed 6 | 3 3 . Worker 2 | 2 . . Tunneler 6 | 6 . . Hauler 2 | . 2 . Recycler 1 | 1 . . Swarmer 3 | . 3 . Grunt 13 | . 11 2 Best Kill Streak 4 | 2 4 2 Combat Bots Only 4 | . 4 2 Max Kills in Single Turn 2 | 2 1 1 Gunslinging . | . . . Exploded . | . . . Melee . | . . . Uniques/NPCs Destroyed . | . . . Combat | -11 -10 -10 -------- Run | Yrd Mat Min Hostile Shots Fired 111 | . 79 32 Missed 34 | . 22 12 Hits 77 | . 57 20 Projectile 77 | . 57 20 AOE 8 | . . 8 Critical Strikes 2 | . 2 . Damage Taken 1355 | . 832 523 Core 264 | . 143 121 Absorbed by Shields . | . . . Regen/Repaired (Parts) 224 | . 224 . Core Remaining (%) 100 | 100 . . Volleys Fired 120 | 46 66 8 Largest 2 | 2 2 2 Hottest 100 | 40 40 100 Shots Fired 239 | 92 132 15 Gun 238 | 92 132 14 Cannon . | . . . Launcher . | . . . Special 1 | . . 1 Kinetic 238 | 92 132 14 Thermal 1 | . . 1 Explosive . | . . . Electromagnetic . | . . . Robot Hit Streak 10 | 8 10 9 Robot Miss Streak 4 | 4 4 1 Penetration Max . | . . . Secondary Targets 2 | . 2 . Max Gunslinging Chain 1 | . 1 . Shots Hit Robots 162 | 59 92 11 Core Hits 58 | 15 36 7 Critical Kills . | . . . Critical Parts Destroyed . | . . . Critical Strikes . | . . . Melee Attacks . | . . . Impact . | . . . Slashing . | . . . Piercing . | . . . Sneak Attacks . | . . . Combat Hostiles . | . . . Follow-up Attacks . | . . . Damage Inflicted 1647 | 606 947 94 Guns 1630 | 597 939 94 Cannons . | . . . Explosions . | . . . Melee . | . . . Ramming 17 | 9 8 . Kinetic 1630 | 597 939 94 Thermal . | . . . Explosive . | . . . Electromagnetic . | . . . Impact . | . . . Slashing . | . . . Piercing . | . . . Highest Corruption . | . . . Average Corruption . | . . . Corruption Purged . | . . . Corruption Blocked . | . . . Overload Shots . | . . . Overflow Damage . | . . . Projectiles . | . . . Explosions . | . . . Melee . | . . . Knockbacks . | . . . Impact . | . . . Kinetic . | . . . Secondary . | . . . Self-Inflicted Damage . | . . . Shots . | . . . Rammed 2 | 1 1 . Targets Rammed 2 | 1 1 . Kicked . | . . . Crushed . | . . . Highest Temperature 27 | . 27 20 Average Temperature 10 | . 10 8 Received Heat Transfer 495 | . 408 87 Siege Activations . | . . . Martial Activations . | . . . Shielding Activations . | . . . Robots Disrupted . | . . . Combat Hostiles . | . . . Robots Corrupted . | . . . Combat Hostiles . | . . . Parts Fried . | . . . Impact Corruptions . | . . . Robots Melted . | . . . Combat Hostiles . | . . . Parts Melted . | . . . Heat Transferred . | . . . Parts Sabotaged . | . . . Parts Stolen . | . . . Parts Stripped . | . . . Power Chain Reactions . | . . . Alert | -11 -10 -10 ------- Run | Yrd Mat Min Maximum Alert Level . | . . . Low Security (%) 100 | 100 100 100 Level 1 . | . . . Level 2 . | . . . Level 3 . | . . . Level 4 . | . . . Level 5 . | . . . High Security . | . . . Max Security . | . . . Peak Influence 107 | 10 107 59 Initial 19 | . . 19 Average 30 | 1 41 30 Influence Increases 526 | 45 430 51 Destroy 0b10 Robot/C 320 | . 280 40 Destroy 0b10 Robot/NC 55 | 45 10 . Destroy Leader 74 | . 64 10 Successful Hack 31 | . 31 . Select Force Hacks 30 | . 30 . Destroy Structure 1 | . . 1 Lose Combat Pursuer 15 | . 15 . Influence Decreases 526 | 45 378 103 Entered New Map 33 | . . 33 Time Decay 433 | 45 348 40 Lost Part 60 | . 30 30 Squads Dispatched 4 | . 4 . Investigation 1 | . 1 . Extermination . | . . . Reinforcement 3 | . 3 . Assault . | . . . Garrison . | . . . Intercept . | . . . Searches Triggered . | . . . Construction Impeded . | . . . Haulers Reinforced . | . . . Active Scanning Responses . | . . . Cargo Convoy Interrupts . | . . . Stealth | -11 -10 -10 --------- Run | Yrd Mat Min Distress Signals 2 | . 2 . Communications Jammed . | . . . Distress Signals . | . . . Times Spotted 42 | . 25 17 Peak Tracking Total 9 | . 5 9 Tactical Retreats 1 | . 1 . Traps | -11 -10 -10 ------- Run | Yrd Mat Min Traps Triggered 3 | . 3 . Indirectly . | . . . Trap Hack Attempts . | . . . Triggered . | . . . Disarmed . | . . . Reprogrammed . | . . . Reused . | . . . Traps Extracted . | . . . Installed . | . . . Triggered . | . . . Machines | -11 -10 -10 ---------- Run | Yrd Mat Min Machines Disabled . | . . . Max in Single Turn . | . . . Machines Repaired . | . . . Machines Dismantled . | . . . Machines Sabotaged . | . . . Overloaded Fab Kills . | . . . Hacking | -11 -10 -10 --------- Run | Yrd Mat Min Machines Accessed 6 | . 6 . Terminals 4 | . 4 . Fabricators . | . . . Repair Stations 1 | . 1 . Recycling Units 1 | . 1 . Scanalyzers . | . . . Garrison Access . | . . . Total Hacks 22 | . 22 . Successful 14 | . 14 . Failed 8 | . 8 . Catastrophic . | . . . Database Lockouts . | . . . Manual 16 | . 16 . Terminals 17 | . 17 . Fabricators . | . . . Repair Stations 4 | . 4 . Recycling Units 1 | . 1 . Scanalyzers . | . . . Garrison Access . | . . . Terminal Hacks 3 | . 3 . Robot Analysis 1 | . 1 . Prototype ID Bank 1 | . 1 . Zone Layout 1 | . 1 . Fabricator Hacks . | . . . Repair Station Hacks 4 | . 4 . Scan Component 2 | . 2 . Repair 2 | . 2 . Recycling Unit Hacks . | . . . Scanalyzer . | . . . Garrison Access Hacks . | . . . Unauthorized Hacks 7 | . 7 . Terminals 6 | . 6 . Botnet 3 | . 3 . Skim 3 | . 3 . Fabricators . | . . . Repair Stations . | . . . Recycling Units 1 | . 1 . Tunnel 1 | . 1 . Scanalyzers . | . . . Garrison Access . | . . . Data Cores Recovered . | . . . Used . | . . . Hacking Detections 5 | . 5 . Full Trace Events . | . . . Feedback Events . | . . . Feedback Blocked . | . . . Robot Schematics Acquired . | . . . Robots Built . | . . . Authchips . | . . . Time . | . . . Total Robot Build Rating . | . . . Part Schematics Acquired . | . . . Parts Built . | . . . Authchips . | . . . Time . | . . . Total Part Build Rating . | . . . Part Studies Acquired . | . . . Parts Repaired 2 | . 2 . Time 52 | . 52 . Parts Recycled . | . . . Recycled Matter . | . . . Retrieved Matter . | . . . Retrieved Components . | . . . Parts Scanalyzed . | . . . Part Schematics Acquired . | . . . Parts Damaged . | . . . Bothacking | -11 -10 -10 ------------ Run | Yrd Mat Min Used RIF Installer . | . . . Robots Hacked . | . . . Non-combat . | . . . Combat . | . . . Robot Hacks Applied . | . . . Relay Couplers Released . | . . . Fabnet Peak Effective % . | . . . Robots Rewired . | . . . Allies Hacked . | . . . Hacks Repelled . | . . . Allies | -11 -10 -10 -------- Run | Yrd Mat Min Total Allies . | . . . Largest Group . | . . . Highest-Rated Group . | . . . Highest-Rated Ally . | . . . Total Orders . | . . . Ally Attacks . | . . . Total Damage . | . . . Kills . | . . . Allies Corrupted . | . . . Allies Melted . | . . . Intel | -11 -10 -10 ------- Run | Yrd Mat Min Active Infowar (turns) 645 | 306 339 . Seismic 645 | 306 339 . Robot Analysis Total 1 | . 1 . Derelict Logs Recovered . | . . . Drone Launches . | . . . Drone Recoveries . | . . . Exploration | -11 -10 -10 ------------- Run | Yrd Mat Min Turns Passed 1518 | 382 1045 91 Spaces Moved 678 | 150 484 44 Core 13 | 4 . 9 Treads 665 | 146 484 35 Legs . | . . . Wheels . | . . . Hover . | . . . Flight . | . . . Fastest Speed 50 | 50 160 50 Average Speed 158 | 157 160 139 Slowest Speed 240 | 160 160 240 Overloaded Moves . | . . . Propulsion Burnouts . | . . . Robots Hopped . | . . . Potential Cave-ins . | . . . Cave-ins Triggered . | . . . Exploration Rate (%) 32 | 7 72 19 Regions Visited 2 Branch Regions 1 Pre-discovered Areas 1 | . 1 . Known Exits Taken . | . . . Unknown Exits Taken 2 | 1 1 . Scrap Searched . | . . . Spaces Dug 1 | . . 1 Terrain Destroyed 1 | . . 1 Melee . | . . . Projectile 1 | . . 1 AOE . | . . . Terrain Rammed . | . . . Walls Destroyed . | . . . Machines Disabled . | . . . Actions | -11 -10 -10 --------- Run | Yrd Mat Min Total 906 | 210 638 58 Wait 74 | . 74 . Move 676 | 149 483 44 Hop . | . . . Pick Up 14 | 7 6 1 Fast Attach 10 | 7 3 . Attach 5 | . 2 3 Detach 1 | . 1 . Swap 2 | . . 2 Drop 2 | . 2 . Fire 120 | 46 66 8 Melee . | . . . Ram . | . . . Kick . | . . . Crush 2 | 1 1 . Escape Stasis . | . . . Rewire . | . . . Trap . | . . . Miscellaneous . | . . . Route ------- -11/Scrapyard -10/Materials (discovered 2 exits: [*Mat] / [*Min]) -10/Mines History --------- Turn | Location | Event 11 | -11/Scrapyard | Discovered new exit (range 16) 383 | -11/Scrapyard | Entered Materials 384 | -10/Materials | Build established: Mutant 979 | -10/Materials | Repaired Lgt. Treads 1007 | -10/Materials | Repaired Lgt. Treads 1121 | -10/Materials | Discovered new exit (range 5) 1239 | -10/Materials | Core integrity fell below 50% 1311 | -10/Materials | Discovered new exit (range 15) 1428 | -10/Materials | Entered Mines 1459 | -10/Mines | Assembled infested the area 1495 | -10/Mines | Core integrity fell below 20% 1514 | -10/Mines | Released all parts (4) 1519 | -10/Mines | Destroyed by as-23487 with Assembled Heavy Rifle Last Messages --------------- payload. 01492_ D-53 Grenadier unfolds itself. 01492_ Lgt. Assault Rifle destroyed. 01499_ as-74227 destroyed. 01499_ as-54512 destroyed. 01499_ as-27734 destroyed. 01501_ The unstable cave ceiling collapses. 01501_ Matter Pump disabled. 01505_ as-82339 destroyed. 01507_ as-41379 destroyed. 01507_ as-21452 destroyed. 01507_ as-94725 destroyed. 01507_ as-92122 destroyed. 01508_ The unstable cave ceiling collapses. 01511_ Lgt. Treads destroyed. 01514_ Ion Engine destroyed. 01514_ Released Med. Laser. 01514_ Released Lgt. Assault Rifle. 01514_ Released Lrg. Storage Unit. 01514_ Released Lgt. Treads. Map ----- +----------------------------------------------------+ | ????????????????????# ## #????????? | | ???????????????????## %= #????????? | | ????????????? ## ! ##????????? | | ???????????????###### *### # #?????????? | | ??????????????????# % ## #?????????? | | ??????????????????# #?????????? | | ?????????????????# # % #?????????? | | ????????????????## ##?????????? | | ??????????????### # #?????????? | | ????????????? ##????????? | | ???????????????? % #????????? | | ????????????????? # # ##????????? | | ??????????????????????## #????????? | | ??????????????????????# #????????? | | ?????????????????????## #????????? | | ?????????????????????# =|! " #????????? | | ?????????????????????# =[! #????????? | | ?????????????????????# [= #????????? | | ?????????????????????# ##????????? | | ??????????????????????# ## ####?????????? | | ?????????????????????## ###????????????? | | ????????????????????## #?????????????? | | ???????????????????## ##????????????? | | ??????????????????## #????????????? | | ?????????????????## a #????????????? | | ?????????????????# @ ### ##????????????? | | ?????????????? a ##??###?????????????? | | ?????????? #???????????????????? | | ????????# #???????????????????? | | ????????## ### ##a #??????????????????? | | ?????????#????####?## #??????????????????? | | ????????????????????## ??????????????????? | | ?????????????????????# ?????????????????? | | ?????????????????????## ????????????????? | | ???????????????????????# ???????????????? | | ???????????????????????? ??????????????? | | ???????????????????????? ### ?????????????? | | ?????????????????????????##????????????????? | | ???????????????????????????????????????????? | | ???????????????????????????????????????????? | | ???????????????????????????????????????????? | | ???????????????????????????????????????????? | | ???????????????????????????????????????????? | | ???????????????????????????????????????????? | | ???????????????????????????????????????????? | | ???????????????????????????????????????????? | | ???????????????????????????????????????????? | | ???????????????????????????????????????????? | | ???????????????????????????????????????????? | | ???????????????????????????????????????????? | +----------------------------------------------------+ Best States ------------- Heat Dissipation 25 Energy Generation 10 Energy Capacity 250 Matter Stores 300 Matter Capacity 300 Sight Range 16 Terrain Scan Density 10 Evasion (%) 40 Recoil Reduction 2 Item Schematics ----------------- None Robot Schematics ------------------ None Fabricated ------------ Nothing Repaired ---------- Lgt. Treads | 17% | -10/Materials Lgt. Treads | 22% | -10/Materials Studied --------- None Alien Tech Used ----------------- None Achievements -------------- None Challenges ------------ None Game ------ Seed AntimatterPoweredWell Manual? 0 Play Time 00:07:49 Cumulative 253.8 hours Start 2026.01.13 @ 18:27:52 End 2026.01.13 @ 20:17:49 Sessions 3 Manual Loads 0 Difficulty Rogue Special Mode None Game No. 241 Rogue 241 Adventurer 0 Explorer 0 Win Type - Total 12 Types 8/1/2/0/0/0/0/0/0/1 Lore% 88 Gallery% 79 Achievement% 63 Wizard Run 0 Options --------- Layout 1 ASCII 0 Keyboard 1 Movement Arrows Keybinds 0 Fullscreen 1 Font 24/Smallcaps Map View 50x40 Zoom Use 0% Tactical HUD 1 Map Filters NONE Filters NONE Steam 1 RUN: 9e6b95c3-3a79-49f4-9b30-bde22d4f852c